[Event "The Kvibergspelen 2023"]
[Site "Kviberg Park Hotel & Conference, Krutvagen 2, Gothenburg, Sweden"]
[Date "2023.09.16"]
[Round "5.14"]
[White "Ljung, Harald"]
[Black "Kallen, Jonas"]
[Result "1/2-1/2"]
[TimeControl "15 minutes + 5 seconds per move from move one (Round 1 - 4) / 90 minutes + 30 seconds per move from move one (Round 5 - 8)"]
[WhiteFideId "1738178"]
[BlackFideId "1712896"]
[WhiteElo "2164"]
[BlackElo "2020"]

1. d4 {[%clk 01:30:56]} {[%emt 00:00:03]} d5 {[%clk 01:30:55]} {[%emt
00:00:05]} 2. Nf3 {[%clk 01:31:03]} {[%emt 00:00:23]} Nf6 {[%clk 01:31:11]}
{[%emt 00:00:14]} 3. g3 {[%clk 01:30:52]} {[%emt 00:00:40]} Bf5 {[%clk
01:30:10]} {[%emt 00:01:31]} 4. Bg2 {[%clk 01:31:06]} {[%emt 00:00:17]} e6
{[%clk 01:28:53]} {[%emt 00:01:47]} 5. O-O {[%clk 01:31:25]} {[%emt 00:00:10]}
Bd6 {[%clk 01:27:55]} {[%emt 00:01:28]} 6. c4 {[%clk 01:31:06]} {[%emt
00:00:50]} c6 {[%clk 01:27:59]} {[%emt 00:00:26]} 7. Qb3 {[%clk 01:28:06]}
{[%emt 00:03:30]} Qc8 {[%clk 01:25:20]} {[%emt 00:03:08]} 8. Nc3 {[%clk
01:21:03]} {[%emt 00:07:33]} h6 {[%clk 01:24:33]} {[%emt 00:01:17]} 9. Bd2
{[%clk 01:14:20]} {[%emt 00:07:13]} O-O {[%clk 01:22:51]} {[%emt 00:02:12]} 10.
Rac1 {[%clk 01:14:12]} {[%emt 00:00:39]} dxc4 {[%clk 01:20:26]} {[%emt
00:02:55]} 11. Qxc4 {[%clk 01:14:07]} {[%emt 00:00:35]} Nbd7 {[%clk 01:18:05]}
{[%emt 00:02:51]} 12. Rfe1 {[%clk 01:02:55]} {[%emt 00:11:41]} Ne4 {[%clk
01:10:14]} {[%emt 00:08:21]} 13. Nxe4 {[%clk 00:59:14]} {[%emt 00:04:12]} Bxe4
{[%clk 01:10:32]} {[%emt 00:00:12]} 14. Bh3 {[%clk 00:59:21]} {[%emt 00:00:22]}
Bxf3 {[%clk 01:05:05]} {[%emt 00:05:59]} 15. exf3 {[%clk 00:59:44]} {[%emt
00:00:06]} Nb6 {[%clk 01:04:42]} {[%emt 00:00:52]} 16. Qb3 {[%clk 00:59:19]}
{[%emt 00:00:54]} Nd5 {[%clk 01:02:33]} {[%emt 00:02:40]} 17. f4 {[%clk
00:58:53]} {[%emt 00:00:56]} Qc7 {[%clk 00:57:37]} {[%emt 00:05:26]} 18. Bc3
{[%clk 00:44:34]} {[%emt 00:14:49]} g6 {[%clk 00:49:34]} {[%emt 00:08:33]} 19.
Qd1 {[%clk 00:41:43]} {[%emt 00:03:20]} Rfe8 {[%clk 00:47:10]} {[%emt
00:02:56]} 20. Bg2 {[%clk 00:41:19]} {[%emt 00:00:53]} Qd7 {[%clk 00:45:37]}
{[%emt 00:02:02]} 21. h4 {[%clk 00:32:58]} {[%emt 00:08:52]} h5 {[%clk
00:43:12]} {[%emt 00:02:55]} 22. Qa4 {[%clk 00:30:04]} {[%emt 00:03:24]} Bf8
{[%clk 00:41:11]} {[%emt 00:02:31]} 23. Rcd1 {[%clk 00:27:30]} {[%emt
00:03:03]} Bg7 {[%clk 00:40:53]} {[%emt 00:00:48]} 24. Qc4 {[%clk 00:20:54]}
{[%emt 00:07:06]} Ne7 {[%clk 00:37:36]} {[%emt 00:03:48]} 25. a4 {[%clk
00:18:53]} {[%emt 00:02:31]} Nf5 {[%clk 00:35:35]} {[%emt 00:02:31]} 26. Rd2
{[%clk 00:17:18]} {[%emt 00:02:05]} Rab8 {[%clk 00:33:33]} {[%emt 00:02:33]} 27.
a5 {[%clk 00:11:04]} {[%emt 00:06:45]} a6 {[%clk 00:33:39]} {[%emt 00:00:24]}
28. Red1 {[%clk 00:09:15]} {[%emt 00:02:18]} Rbd8 {[%clk 00:32:22]} {[%emt
00:01:46]} 29. Qc5 {[%clk 00:08:06]} {[%emt 00:01:39]} Bf8 {[%clk 00:29:16]}
{[%emt 00:03:36]} 30. Qc4 {[%clk 00:06:54]} {[%emt 00:01:42]} Nd6 {[%clk
00:28:40]} {[%emt 00:01:06]} 31. Qe2 {[%clk 00:07:17]} {[%emt 00:00:07]} Bg7
{[%clk 00:27:55]} {[%emt 00:01:15]} 32. Bf3 {[%clk 00:05:13]} {[%emt 00:02:34]}
Nb5 {[%clk 00:26:36]} {[%emt 00:01:49]} 33. g4 {[%clk 00:04:39]} {[%emt
00:01:05]} hxg4 {[%clk 00:25:44]} {[%emt 00:01:23]} 34. Bxg4 {[%clk 00:05:07]}
{[%emt 00:00:01]} Qe7 {[%clk 00:24:17]} {[%emt 00:01:57]} 35. h5 {[%clk
00:04:36]} {[%emt 00:01:00]} gxh5 {[%clk 00:24:05]} {[%emt 00:00:42]} 36. Bxh5
{[%clk 00:04:57]} {[%emt 00:00:10]} Qh4 {[%clk 00:23:20]} {[%emt 00:01:13]} 37.
Qg4 {[%clk 00:02:36]} {[%emt 00:02:52]} Qxg4+ {[%clk 00:23:00]} {[%emt
00:00:50]} 38. Bxg4 {[%clk 00:03:06]} {[%emt 00:00:01]} Rd5 {[%clk 00:22:17]}
{[%emt 00:01:12]} 39. f5 {[%clk 00:01:20]} {[%emt 00:02:16]} exf5 {[%clk
00:22:10]} {[%emt 00:00:37]} 40. Bf3 {[%clk 00:01:49]} {[%emt 00:00:01]} Rd6
{[%clk 00:21:42]} {[%emt 00:00:57]} 41. Rd3 {[%clk 00:01:54]} {[%emt 00:00:26]}
Red8 {[%clk 00:20:35]} {[%emt 00:01:38]} 42. d5 {[%clk 00:01:49]} {[%emt
00:00:35]} Bxc3 {[%clk 00:11:44]} {[%emt 00:09:21]} 43. bxc3 {[%clk 00:02:17]}
{[%emt 00:00:02]} cxd5 {[%clk 00:10:28]} {[%emt 00:01:45]} 1/2-1/2

[Event "The Kvibergspelen 2023"]
[Site "Kviberg Park Hotel & Conference, Krutvagen 2, Gothenburg, Sweden"]
[Date "2023.09.16"]
[Round "5.15"]
[White "Stenman, Christoffer"]
[Black "Strom-Engdahl, Alexander"]
[Result "1-0"]
[TimeControl "15 minutes + 5 seconds per move from move one (Round 1 - 4) / 90 minutes + 30 seconds per move from move one (Round 5 - 8)"]
[WhiteFideId "1713604"]
[BlackFideId "1741586"]
[WhiteElo "1896"]
[BlackElo "2164"]

1. e4 {[%clk 01:30:56]} {[%emt 00:00:04]} c6 {[%clk 01:30:54]} {[%emt
00:00:07]} 2. Nf3 {[%clk 01:29:12]} {[%emt 00:02:14]} d5 {[%clk 01:31:03]}
{[%emt 00:00:21]} 3. exd5 {[%clk 01:28:49]} {[%emt 00:00:53]} cxd5 {[%clk
01:31:26]} {[%emt 00:00:07]} 4. Ne5 {[%clk 01:29:10]} {[%emt 00:00:08]} Nc6
{[%clk 01:30:32]} {[%emt 00:01:24]} 5. Bb5 {[%clk 01:29:30]} {[%emt 00:00:10]}
Bd7 {[%clk 01:30:40]} {[%emt 00:00:23]} 6. Nxd7 {[%clk 01:29:50]} {[%emt
00:00:10]} Qxd7 {[%clk 01:31:05]} {[%emt 00:00:06]} 7. d4 {[%clk 01:29:01]}
{[%emt 00:01:18]} Nf6 {[%clk 01:30:02]} {[%emt 00:01:33]} 8. O-O {[%clk
01:28:12]} {[%emt 00:01:19]} e6 {[%clk 01:30:11]} {[%emt 00:00:22]} 9. Bf4
{[%clk 01:26:46]} {[%emt 00:01:53]} Bd6 {[%clk 01:27:10]} {[%emt 00:03:32]} 10.
Bxd6 {[%clk 01:16:44]} {[%emt 00:10:33]} Qxd6 {[%clk 01:27:36]} {[%emt
00:00:03]} 11. c3 {[%clk 01:16:30]} {[%emt 00:00:45]} O-O {[%clk 01:27:35]}
{[%emt 00:00:31]} 12. f4 {[%clk 01:12:02]} {[%emt 00:04:57]} Ne7 {[%clk
01:24:41]} {[%emt 00:03:25]} 13. Bd3 {[%clk 01:02:15]} {[%emt 00:10:16]} Rfc8
{[%clk 01:17:26]} {[%emt 00:07:46]} 14. Nd2 {[%clk 01:01:14]} {[%emt 00:01:30]}
b5 {[%clk 01:11:51]} {[%emt 00:06:06]} 15. a3 {[%clk 00:56:35]} {[%emt
00:05:09]} Qb6 {[%clk 01:07:44]} {[%emt 00:04:36]} 16. Qe2 {[%clk 00:50:10]}
{[%emt 00:06:54]} Rab8 {[%clk 01:04:02]} {[%emt 00:04:14]} 17. g4 {[%clk
00:44:47]} {[%emt 00:05:52]} Nd7 {[%clk 00:54:01]} {[%emt 00:10:30]} 18. Rf3
{[%clk 00:34:44]} {[%emt 00:10:33]} Ng6 {[%clk 00:46:10]} {[%emt 00:08:22]} 19.
Kh1 {[%clk 00:32:17]} {[%emt 00:02:56]} Re8 {[%clk 00:43:33]} {[%emt 00:03:07]}
20. Qf2 {[%clk 00:26:21]} {[%emt 00:06:25]} Ngf8 {[%clk 00:40:01]} {[%emt
00:04:03]} 21. Rh3 {[%clk 00:25:43]} {[%emt 00:01:08]} e5 {[%clk 00:37:59]}
{[%emt 00:02:33]} 22. fxe5 {[%clk 00:22:05]} {[%emt 00:04:07]} Nxe5 {[%clk
00:37:34]} {[%emt 00:00:55]} 23. Rf1 {[%clk 00:22:17]} {[%emt 00:00:18]} Nxd3
{[%clk 00:31:53]} {[%emt 00:06:11]} 24. Qxf7+ {[%clk 00:22:34]} {[%emt
00:00:13]} Kh8 {[%clk 00:32:19]} {[%emt 00:00:04]} 25. Rxd3 {[%clk 00:19:10]}
{[%emt 00:03:54]} Qd6 {[%clk 00:28:29]} {[%emt 00:04:20]} 26. Nf3 {[%clk
00:14:29]} {[%emt 00:05:11]} Nd7 {[%clk 00:19:05]} {[%emt 00:09:55]} 27. Ng5
{[%clk 00:13:00]} {[%emt 00:01:57]} Rf8 {[%clk 00:15:07]} {[%emt 00:04:29]} 28.
Rdf3 {[%clk 00:09:09]} {[%emt 00:04:18]} Nf6 {[%clk 00:08:55]} {[%emt
00:06:46]} 29. Rxf6 {[%clk 00:07:37]} {[%emt 00:02:01]} Qxf6 {[%clk 00:08:49]}
{[%emt 00:00:38]} 30. Rxf6 {[%clk 00:07:52]} {[%emt 00:00:14]} Rxf7 {[%clk
00:09:14]} {[%emt 00:00:05]} 31. Rxf7 {[%clk 00:08:15]} {[%emt 00:00:06]} a5
{[%clk 00:09:29]} {[%emt 00:00:15]} 32. Ne6 {[%clk 00:07:56]} {[%emt 00:00:49]}
Kg8 {[%clk 00:09:30]} {[%emt 00:00:29]} 33. Rxg7+ {[%clk 00:08:17]} {[%emt
00:00:09]} Kh8 {[%clk 00:09:59]} {[%emt 00:00:01]} 34. Rd7 {[%clk 00:08:32]}
{[%emt 00:00:14]} 1-0

[Event "The Kvibergspelen 2023"]
[Site "Kviberg Park Hotel & Conference, Krutvagen 2, Gothenburg, Sweden"]
[Date "2023.09.16"]
[Round "5.17"]
[White "Jogstad, Daniel"]
[Black "Westlund, Tim"]
[Result "1-0"]
[TimeControl "15 minutes + 5 seconds per move from move one (Round 1 - 4) / 90 minutes + 30 seconds per move from move one (Round 5 - 8)"]
[WhiteTitle "CM"]
[WhiteFideId "1718959"]
[BlackFideId "1754718"]
[WhiteElo "2137"]
[BlackElo "1871"]

1. Nf3 {[%clk 01:30:55]} {[%emt 00:00:04]} Nf6 {[%clk 01:30:44]} {[%emt
00:00:15]} 2. g3 {[%clk 01:31:20]} {[%emt 00:00:06]} d5 {[%clk 01:30:22]}
{[%emt 00:00:52]} 3. d4 {[%clk 01:31:45]} {[%emt 00:00:06]} e6 {[%clk
01:30:29]} {[%emt 00:00:21]} 4. c4 {[%clk 01:32:01]} {[%emt 00:00:16]} Bb4+
{[%clk 01:30:41]} {[%emt 00:00:18]} 5. Nbd2 {[%clk 01:32:25]} {[%emt 00:00:06]}
dxc4 {[%clk 01:29:20]} {[%emt 00:01:51]} 6. Bg2 {[%clk 01:31:59]} {[%emt
00:00:56]} O-O {[%clk 01:27:13]} {[%emt 00:02:38]} 7. Qc2 {[%clk 01:32:25]}
{[%emt 00:00:04]} Bxd2+ {[%clk 01:24:20]} {[%emt 00:03:22]} 8. Bxd2 {[%clk
01:31:11]} {[%emt 00:01:44]} b6 {[%clk 01:21:42]} {[%emt 00:03:08]} 9. Ne5
{[%clk 01:27:04]} {[%emt 00:04:38]} Nd5 {[%clk 01:19:33]} {[%emt 00:02:37]} 10.
O-O {[%clk 01:26:39]} {[%emt 00:00:56]} Ba6 {[%clk 01:16:44]} {[%emt 00:03:18]}
11. Rfd1 {[%clk 01:21:49]} {[%emt 00:05:19]} Qe7 {[%clk 01:07:11]} {[%emt
00:10:04]} 12. Nxc4 {[%clk 01:16:54]} {[%emt 00:05:25]} Nd7 {[%clk 01:06:42]}
{[%emt 00:00:59]} 13. e4 {[%clk 01:14:40]} {[%emt 00:02:44]} N5f6 {[%clk
01:05:45]} {[%emt 00:01:27]} 14. Ne3 {[%clk 01:10:36]} {[%emt 00:04:33]} Rac8
{[%clk 01:04:15]} {[%emt 00:02:02]} 15. e5 {[%clk 01:09:44]} {[%emt 00:01:22]}
Ne8 {[%clk 01:03:07]} {[%emt 00:01:38]} 16. Qa4 {[%clk 01:09:07]} {[%emt
00:01:07]} Nb8 {[%clk 01:01:28]} {[%emt 00:02:09]} 17. Bb4 {[%clk 01:07:43]}
{[%emt 00:01:53]} c5 {[%clk 01:01:21]} {[%emt 00:00:37]} 18. dxc5 {[%clk
01:08:04]} {[%emt 00:00:09]} bxc5 {[%clk 01:01:13]} {[%emt 00:00:39]} 19. Ba3
{[%clk 01:08:29]} {[%emt 00:00:05]} Nc7 {[%clk 00:58:30]} {[%emt 00:03:13]} 20.
Rac1 {[%clk 01:06:15]} {[%emt 00:02:43]} Nb5 {[%clk 00:56:23]} {[%emt
00:02:37]} 21. Bf1 {[%clk 01:05:24]} {[%emt 00:01:21]} Qb7 {[%clk 00:50:05]}
{[%emt 00:06:48]} 22. Bxc5 {[%clk 01:05:14]} {[%emt 00:00:40]} Rfd8 {[%clk
00:49:56]} {[%emt 00:00:40]} 23. Nc4 {[%clk 00:43:25]} {[%emt 00:22:19]} Rxd1
{[%clk 00:45:08]} {[%emt 00:05:17]} 24. Rxd1 {[%clk 00:43:49]} {[%emt
00:00:06]} Qc6 {[%clk 00:43:52]} {[%emt 00:01:45]} 25. Nd6 {[%clk 00:37:53]}
{[%emt 00:06:27]} Nd7 {[%clk 00:19:09]} {[%emt 00:25:13]} 26. Bxb5 {[%clk
00:11:55]} {[%emt 00:26:29]} Bxb5 {[%clk 00:11:45]} {[%emt 00:07:53]} 27. Qxb5
{[%clk 00:12:19]} {[%emt 00:00:05]} Qxb5 {[%clk 00:11:22]} {[%emt 00:00:55]} 28.
Nxb5 {[%clk 00:12:43]} {[%emt 00:00:06]} Nxc5 {[%clk 00:11:07]} {[%emt
00:00:43]} 29. Rc1 {[%clk 00:12:52]} {[%emt 00:00:22]} a5 {[%clk 00:10:26]}
{[%emt 00:01:12]} 30. a3 {[%clk 00:12:47]} {[%emt 00:00:35]} a4 {[%clk
00:10:40]} {[%emt 00:00:15]} 31. Nd6 {[%clk 00:13:01]} {[%emt 00:00:16]} Rc7
{[%clk 00:10:28]} {[%emt 00:00:39]} 32. Ne4 {[%clk 00:13:24]} {[%emt 00:00:10]}
Na6 {[%clk 00:10:21]} {[%emt 00:00:38]} 33. Rxc7 {[%clk 00:13:49]} {[%emt
00:00:05]} Nxc7 {[%clk 00:10:43]} {[%emt 00:00:08]} 34. Nc3 {[%clk 00:14:07]}
{[%emt 00:00:11]} Kf8 {[%clk 00:10:38]} {[%emt 00:00:35]} 35. Nxa4 {[%clk
00:14:22]} {[%emt 00:00:15]} Ke7 {[%clk 00:10:58]} {[%emt 00:00:10]} 36. Nc5
{[%clk 00:14:04]} {[%emt 00:00:49]} f6 {[%clk 00:10:49]} {[%emt 00:00:39]} 37.
f4 {[%clk 00:14:29]} {[%emt 00:00:05]} Nb5 {[%clk 00:10:58]} {[%emt 00:00:21]}
38. Kf2 {[%clk 00:14:02]} {[%emt 00:00:56]} Nd4 {[%clk 00:11:11]} {[%emt
00:00:17]} 39. Ke3 {[%clk 00:13:31]} {[%emt 00:01:02]} Nc6 {[%clk 00:10:51]}
{[%emt 00:00:49]} 40. Ke4 {[%clk 00:13:42]} {[%emt 00:00:19]} f5+ {[%clk
00:11:12]} {[%emt 00:00:09]} 41. Kd3 {[%clk 00:14:00]} {[%emt 00:00:12]} h6
{[%clk 00:11:31]} {[%emt 00:00:11]} 42. b4 {[%clk 00:14:06]} {[%emt 00:00:25]}
g5 {[%clk 00:10:59]} {[%emt 00:01:02]} 43. b5 {[%clk 00:14:23]} {[%emt
00:00:12]} Nb8 {[%clk 00:10:57]} {[%emt 00:00:32]} 44. a4 {[%clk 00:14:38]}
{[%emt 00:00:15]} g4 {[%clk 00:10:01]} {[%emt 00:01:26]} 45. a5 {[%clk
00:14:49]} {[%emt 00:00:19]} Nd7 {[%clk 00:07:50]} {[%emt 00:02:42]} 46. Nxd7
{[%clk 00:15:07]} {[%emt 00:00:12]} Kxd7 {[%clk 00:07:54]} {[%emt 00:00:26]} 47.
Kc4 {[%clk 00:15:31]} {[%emt 00:00:06]} Kc7 {[%clk 00:08:14]} {[%emt 00:00:09]}
48. Kc5 {[%clk 00:15:56]} {[%emt 00:00:05]} h5 {[%clk 00:08:00]} {[%emt
00:00:44]} 49. a6 {[%clk 00:16:17]} {[%emt 00:00:09]} h4 {[%clk 00:08:08]}
{[%emt 00:00:22]} 50. b6+ {[%clk 00:16:41]} {[%emt 00:00:06]} Kb8 {[%clk
00:08:00]} {[%emt 00:00:38]} 51. Kc6 {[%clk 00:17:02]} {[%emt 00:00:09]} h3
{[%clk 00:07:42]} {[%emt 00:00:49]} 52. a7+ {[%clk 00:17:14]} {[%emt 00:00:17]}
Ka8 {[%clk 00:08:02]} {[%emt 00:00:11]} 53. b7+ {[%clk 00:17:37]} {[%emt
00:00:07]} 1-0

[Event "The Kvibergspelen 2023"]
[Site "Kviberg Park Hotel & Conference, Krutvagen 2, Gothenburg, Sweden"]
[Date "2023.09.16"]
[Round "5.18"]
[White "Bohman Karlholm, Adrian"]
[Black "Tripathi, Pratyush"]
[Result "0-1"]
[TimeControl "15 minutes + 5 seconds per move from move one (Round 1 - 4) / 90 minutes + 30 seconds per move from move one (Round 5 - 8)"]
[WhiteFideId "1720643"]
[BlackFideId "1763121"]
[WhiteElo "2134"]
[BlackElo "1735"]

1. d4 {[%clk 01:30:58]} d5 {[%clk 01:30:18]} {[%emt 00:00:42]} 2. c4 {[%clk
01:31:20]} {[%emt 00:00:08]} c6 {[%clk 01:30:43]} {[%emt 00:00:06]} 3. Nf3
{[%clk 01:31:43]} {[%emt 00:00:06]} Nf6 {[%clk 01:31:06]} {[%emt 00:00:08]} 4.
Nc3 {[%clk 01:32:04]} {[%emt 00:00:08]} e6 {[%clk 01:31:31]} {[%emt 00:00:06]}
5. e3 {[%clk 01:32:24]} {[%emt 00:00:09]} Nbd7 {[%clk 01:31:50]} {[%emt
00:00:11]} 6. Bd3 {[%clk 01:32:41]} {[%emt 00:00:12]} dxc4 {[%clk 01:32:14]}
{[%emt 00:00:07]} 7. Bxc4 {[%clk 01:33:02]} {[%emt 00:00:09]} b5 {[%clk
01:32:38]} {[%emt 00:00:07]} 8. Bd3 {[%clk 01:33:22]} {[%emt 00:00:09]} Bd6
{[%clk 01:33:01]} {[%emt 00:00:07]} 9. O-O {[%clk 01:31:23]} {[%emt 00:02:30]}
O-O {[%clk 01:33:01]} {[%emt 00:00:30]} 10. a4 {[%clk 01:27:46]} {[%emt
00:04:06]} b4 {[%clk 01:30:47]} {[%emt 00:02:45]} 11. Ne4 {[%clk 01:27:39]}
{[%emt 00:00:36]} Nxe4 {[%clk 01:29:33]} {[%emt 00:01:45]} 12. Bxe4 {[%clk
01:28:01]} {[%emt 00:00:07]} Bb7 {[%clk 01:29:57]} {[%emt 00:00:06]} 13. Bd2
{[%clk 01:23:39]} {[%emt 00:04:52]} Nf6 {[%clk 01:22:17]} {[%emt 00:08:11]} 14.
Bd3 {[%clk 01:21:39]} {[%emt 00:02:30]} c5 {[%clk 01:22:15]} {[%emt 00:00:31]}
15. Qe2 {[%clk 01:17:37]} {[%emt 00:04:32]} Ne4 {[%clk 01:12:18]} {[%emt
00:10:28]} 16. Be1 {[%clk 01:15:56]} {[%emt 00:02:10]} Qf6 {[%clk 01:07:33]}
{[%emt 00:05:16]} 17. Nd2 {[%clk 01:02:00]} {[%emt 00:14:26]} Nxd2 {[%clk
01:01:40]} {[%emt 00:06:23]} 18. Qxd2 {[%clk 01:02:18]} {[%emt 00:00:11]} cxd4
{[%clk 00:59:48]} {[%emt 00:02:23]} 19. exd4 {[%clk 01:02:37]} {[%emt
00:00:10]} Rfd8 {[%clk 00:58:39]} {[%emt 00:01:40]} 20. Rd1 {[%clk 00:57:57]}
{[%emt 00:05:09]} Bf4 {[%clk 00:52:43]} {[%emt 00:06:27]} 21. Qe2 {[%clk
00:49:39]} {[%emt 00:08:47]} Rxd4 {[%clk 00:51:55]} {[%emt 00:01:19]} 22. f3
{[%clk 00:47:44]} {[%emt 00:02:24]} a5 {[%clk 00:47:06]} {[%emt 00:05:19]} 23.
Bf2 {[%clk 00:46:31]} {[%emt 00:01:44]} Rdd8 {[%clk 00:46:44]} {[%emt
00:00:51]} 24. Bb5 {[%clk 00:38:18]} {[%emt 00:08:43]} Be5 {[%clk 00:41:55]}
{[%emt 00:05:19]} 25. b3 {[%clk 00:32:46]} {[%emt 00:06:03]} Bd4 {[%clk
00:41:51]} {[%emt 00:00:34]} 26. Kh1 {[%clk 00:31:35]} {[%emt 00:01:40]} Bxf2
{[%clk 00:41:12]} {[%emt 00:01:10]} 27. Qxf2 {[%clk 00:31:28]} {[%emt
00:00:36]} Bd5 {[%clk 00:39:23]} {[%emt 00:02:19]} 28. Rd3 {[%clk 00:28:16]}
{[%emt 00:03:43]} Rdc8 {[%clk 00:35:54]} {[%emt 00:03:59]} 29. Qe3 {[%clk
00:25:59]} {[%emt 00:02:46]} Rc3 {[%clk 00:33:46]} {[%emt 00:02:39]} 30. Bc4
{[%clk 00:19:41]} {[%emt 00:06:48]} Bxc4 {[%clk 00:31:10]} {[%emt 00:03:06]} 31.
bxc4 {[%clk 00:19:52]} {[%emt 00:00:19]} Rxc4 {[%clk 00:30:43]} {[%emt
00:00:57]} 32. Rfd1 {[%clk 00:18:07]} {[%emt 00:02:15]} Rc3 {[%clk 00:29:46]}
{[%emt 00:01:27]} 33. Qa7 {[%clk 00:16:27]} {[%emt 00:02:09]} Rac8 {[%clk
00:27:18]} {[%emt 00:02:58]} 34. h3 {[%clk 00:15:06]} {[%emt 00:01:51]} Rxd3
{[%clk 00:27:16]} {[%emt 00:00:33]} 35. Rxd3 {[%clk 00:15:26]} {[%emt
00:00:09]} Rc1+ {[%clk 00:27:36]} {[%emt 00:00:10]} 36. Kh2 {[%clk 00:15:48]}
{[%emt 00:00:08]} Qf4+ {[%clk 00:27:57]} {[%emt 00:00:10]} 37. g3 {[%clk
00:15:27]} {[%emt 00:00:50]} Rc2+ {[%clk 00:27:58]} {[%emt 00:00:29]} 38. Kh1
{[%clk 00:15:46]} {[%emt 00:00:11]} Qc1+ {[%clk 00:28:13]} {[%emt 00:00:15]} 39.
Qg1 {[%clk 00:16:06]} {[%emt 00:00:09]} Qxg1+ {[%clk 00:28:38]} {[%emt
00:00:07]} 40. Kxg1 {[%clk 00:16:31]} {[%emt 00:00:04]} Kf8 {[%clk 00:28:48]}
{[%emt 00:00:20]} 41. Rd8+ {[%emt 00:00:56]} Ke7 {[%clk 00:29:07]} {[%emt
00:00:08]} 42. Ra8 {[%clk 00:16:33]} {[%emt 00:00:05]} b3 {[%clk 00:29:28]}
{[%emt 00:00:10]} 0-1